fUSD/lending_fUSD_20260331
["ID","MTS","AMOUNT","RATE_DAILY","PERIOD"]
[419147686,1774941032022,-500.44761252,0.00015073,2]
[419147687,1774941032032,-501.98943819,0.00015073,2]
[419147688,1774941032041,-500.0,0.00015073,2]
[419147689,1774941032051,-500.0,0.00015073,2]
[419147690,1774941032060,-502.07394156,0.00015073,2]
[419147691,1774941032069,-597.2563213,0.00015073,2]
[419147692,1774941032079,-212.49474161,0.0001508,2]
[419147693,1774941032088,-200.0,0.00015081,2]
[419147694,1774941032098,-151.0,0.00015081,2]
[419147696,1774941032107,-503.74966854,0.00015081,2]
[419147697,1774941032117,-151.0,0.00015081,2]
[419147699,1774941032127,-151.0,0.00015081,2]
[419147701,1774941032136,-151.0,0.00015081,2]
[419147703,1774941032146,-151.0,0.00015081,2]
[419147705,1774941032156,-151.0,0.00015081,2]
[419147707,1774941032165,-151.0,0.00015081,2]
[419147709,1774941032176,-151.0,0.00015081,2]
[419147711,1774941032185,-151.0,0.00015081,2]
[419147712,1774941032195,-151.0,0.00015081,2]
[419147713,1774941032204,-151.0,0.00015081,2]
[419147714,1774941032214,-151.0,0.00015081,2]
[419147715,1774941032224,-151.0,0.00015081,2]
[419147716,1774941032234,-168.59384673,0.00015081,2]
[419147717,1774941032244,-257.558448,0.00015081,2]
[419147718,1774941032254,-151.0,0.00015081,2]
[419147719,1774941032263,-540.37460383,0.00015081,2]
[419147720,1774941032273,-151.0,0.00015081,2]
[419147721,1774941032283,-151.0,0.00015081,2]
[419147722,1774941032292,-151.0,0.00015081,2]
[419147723,1774941032302,-151.0,0.00015081,2]
[419147724,1774941032312,-182.53770041,0.00015081,2]
[419147725,1774941032322,-500.0,0.00015089,2]
[419147726,1774941032331,-207.59815547,0.00015089,2]
[419147727,1774941032341,-637.428681,0.00015089,2]
[419147728,1774941032351,-250.06013843,0.00015089,2]
[419147729,1774941032360,-500.0,0.00015089,2]
[419147730,1774941032370,-361.11681594,0.00015089,2]
[419147731,1774941032379,-500.0,0.00015089,2]
[419147732,1774941032390,-464.14148515,0.00015089,2]
[419147733,1774941032400,-500.0,0.00015089,2]
[419147734,1774941032410,-178.32468778,0.00015089,2]
[419147735,1774941032419,-500.0,0.00015089,2]
[419147736,1774941032429,-500.0,0.00015089,2]
[419147737,1774941032438,-500.0,0.00015089,2]
[419147738,1774941032448,-500.0,0.00015089,2]
[419147739,1774941032457,-500.0,0.00015089,2]
[419147740,1774941032467,-500.0,0.00015089,2]
[419147741,1774941032476,-500.0,0.00015089,2]
[419147742,1774941032485,-500.0,0.00015089,2]
[419147743,1774941032495,-500.0,0.00015089,2]
[419147744,1774941032505,-500.0,0.00015089,2]
[419147745,1774941032514,-208.43422032,0.00015089,2]
[419147746,1774941032523,-500.0,0.00015089,2]
[419147747,1774941032533,-500.0,0.00015089,2]
[419147748,1774941032542,-500.0,0.00015089,2]
[419147749,1774941032552,-500.0,0.00015089,2]
[419147750,1774941032561,-500.0,0.00015089,2]
[419147751,1774941032571,-500.0,0.00015089,2]
[419147752,1774941032580,-500.0,0.00015089,2]
[419147753,1774941032590,-500.0,0.00015089,2]
[419147754,1774941032600,-500.0,0.00015089,2]
[419147755,1774941032610,-500.0,0.00015089,2]
[419147756,1774941032619,-500.0,0.00015089,2]
[419147757,1774941032630,-500.0,0.00015089,2]
[419147758,1774941032640,-500.0,0.00015089,2]
[419147759,1774941032649,-500.0,0.00015089,2]
[419147760,1774941032659,-500.0,0.00015089,2]
[419147761,1774941032668,-500.0,0.00015089,2]
[419147762,1774941032678,-500.0,0.00015089,2]
[419147763,1774941032687,-150.0,0.00015089,2]
[419147764,1774941032697,-368.17285447,0.00015089,2]
[419147765,1774941032707,-500.0,0.00015089,2]
[419147766,1774941032716,-500.0,0.00015089,2]
[419147767,1774941032726,-500.0,0.00015089,2]
[419147768,1774941032735,-500.0,0.00015089,2]
[419147769,1774941032744,-500.0,0.00015089,2]
[419147770,1774941032754,-620.84342203,0.00015089,2]
[419147771,1774941032763,-151.0,0.0001509,2]
[419147772,1774941032773,-151.0,0.0001509,2]
[419147773,1774941032782,-151.0,0.0001509,2]
[419147774,1774941032792,-151.0,0.0001509,2]
[419147775,1774941032801,-151.0,0.0001509,2]
[419147776,1774941032811,-282.634464,0.0001509,2]
[419147777,1774941032821,-282.634464,0.0001509,2]
[419147778,1774941032831,-282.634464,0.0001509,2]
[419147779,1774941032841,-282.634464,0.0001509,2]
[419147780,1774941032850,-173.573372,0.0001509,2]
[419147781,1774941032860,-173.573372,0.0001509,2]
[419147782,1774941032869,-173.573372,0.0001509,2]
[419147783,1774941032879,-173.573372,0.0001509,2]
[419147784,1774941032888,-233.257225,0.0001509,2]
[419147785,1774941032898,-233.257225,0.0001509,2]
[419147786,1774941032907,-233.257225,0.0001509,2]
[419147787,1774941032917,-233.257225,0.0001509,2]
[419147788,1774941032926,-48907.98282762,0.0001509,2]
[419147789,1774941032941,-262.02687277,0.0001509,2]
[419147790,1774941032953,-856.08682692,0.0001509,2]
[419147791,1774941032968,-533.75889,0.0001509,2]
[419147792,1774941032979,-3031.8631592,0.0001509,2]
[419147793,1774941032994,-12375.18301735,0.0001509,2]
[419147794,1774941033005,-2113.6046225,0.0001509,2]
[419147795,1774941033016,-591.86802884,0.0001509,2]
[419147796,1774941033028,-14301.21777574,0.0001509,2]
[419147797,1774941033040,-636.65095903,0.0001509,2]
[419147799,1774941037479,-431.69598331,0.0001509,2]
[419147800,1774941037491,-993.71667762,0.0001509,2]
[419147802,1774941037591,-14438.60567993,0.0001509,2]
[419147803,1774941037603,-657.56775131,0.0001509,2]
[419147816,1774941039768,-1039.62509543,0.0001509,2]
[419147817,1774941040352,-220929.71404708,0.0001509,2]
[419147818,1774941040363,-40991.34614017,0.0001509,2]
[419147819,1774941040722,-333.26194966,0.0001509,2]
[419147820,1774941040735,-1037.5394623,0.0001509,2]
[419147821,1774941040747,-623.30468743,0.0001509,2]
[419147822,1774941040760,-265.1286,0.0001509,2]
[419147823,1774941040772,-265.96,0.0001509,2]
[419147824,1774941041261,-308.90153431,0.0001509,2]
[419147825,1774941041272,-1738.835448,0.0001509,2]
[419147826,1774941041284,-436.75223375,0.0001509,2]
[419147827,1774941041296,-1033.56296967,0.0001509,2]
[419147828,1774941041334,-1164.20361154,0.0001509,2]
[419147829,1774941041352,-1577.10868542,0.0001509,2]
[419147830,1774941041365,-285893.80303293,0.0001509,2]
[419147831,1774941041377,-1337.35,0.0001509,2]
[419147832,1774941041390,-999.8506,0.0001509,2]
[419147833,1774941041402,-1000.51193,0.0001509,2]
[419147834,1774941041414,-13820.33477592,0.0001509,2]
[419147835,1774941041447,-3150.75,0.0001509,2]
[419147838,1774941042764,-1163.69555954,0.0001509,2]
[419147852,1774941045686,-90739.35440116,0.0001509,2]
[419147853,1774941045796,-32921.25085867,0.0001509,2]
[419147881,1774941677867,-1000.0,0.00011507,2]
[419147882,1774941679070,-741.58,0.00011507,2]
[419147883,1774941679097,-258.42,0.00012082,2]
[419147884,1774941680068,-73.56449094,0.00012082,2]
[419147885,1774941680092,-243.62271831,0.00012658,2]
[419147886,1774941680115,-182.80572961,0.00012658,2]
[419147887,1774941680138,-250.0,0.00012658,2]
[419147888,1774941680160,-250.0,0.00013,2]
[419147898,1774941884094,157.43,6.949e-05,2]
[419147919,1774941997733,-250.0,0.00012557,2]
[419147920,1774942042441,-129.43,0.00012557,2]
[419147921,1774942042462,-195.0,0.00013813,2]
[419147922,1774942042482,-300.0,0.00013813,2]
[419147923,1774942042503,-145.60807298,0.00013813,2]
[419147924,1774942088067,-770.0,0.0001364,2]
[419147925,1774942146137,-303.48,0.00013352,2]
[419147926,1774942146157,-2470.0,0.0001364,2]
[419147927,1774942146177,-195.0,0.00013707,2]
[419147928,1774942146200,-300.0,0.00013707,2]
[419147929,1774942146221,-2354.39192702,0.00013813,2]
[419147930,1774942146241,-500.0,0.00013813,2]
[419147931,1774942146260,-300.0,0.00013832,2]
[419147932,1774942146281,-760.58314898,0.00013833,2]
[419147933,1774942157097,-839.41685102,0.00013833,2]
[419147934,1774942157120,-157.43,0.00013897,2]
[419147935,1774942157141,-150.0,0.00013897,2]
[419147936,1774942157161,-51.2977185,0.00013897,2]
[419147946,1774942232203,-200.0,0.000133,2]
[419147948,1774942232212,-351.0,0.000133,2]
[419147950,1774942232222,-98.7022815,0.00013897,2]
[419147952,1774942232232,-1726.36,0.00013925,2]
[419147954,1774942232242,-500.0,0.00013959,2]
[419147956,1774942232252,-390.38,0.00013965,2]
[419147958,1774942232261,-1200.0,0.00013992,2]
[419147960,1774942232271,-300.0,0.00013992,2]
[419147961,1774942232281,-233.55885831,0.00013992,2]
[419147962,1774942232293,-66.44114169,0.00013992,2]
[419147963,1774942232302,-420.94389376,0.00013993,2]
[419147964,1774942232331,-1611.15630401,0.00013993,2]
[419147965,1774942232344,-6197.52980223,0.00013993,2]
[419147966,1774942232356,-6368.8254498,0.00014158,2]
[419147967,1774942232366,-1852.42,0.00014192,2]
[419147968,1774942232376,-2000.0,0.00014192,2]
[419147969,1774942232386,-158.21,0.00014247,2]
[419147970,1774942232396,-299.99,0.00014247,2]
[419147971,1774942232406,-151.0,0.00014255,2]
[419147972,1774942232415,-150.0,0.00014257,2]
[419147973,1774942232425,-188.76760828,0.00014258,2]
[419147974,1774942232435,-9999.99,0.00014258,2]
[419147975,1774942232445,-9851.17,0.00014258,2]
[419147976,1774942232454,-108289.38,0.00014258,2]
[419147977,1774942232464,-1480.3,0.00014258,2]
[419147978,1774942232474,-150.99,0.00014258,2]
[419147979,1774942232484,-500.0,0.00014273,2]
[419147980,1774942232493,-500.0,0.00014273,2]
[419147981,1774942232503,-500.0,0.00014273,2]
[419147982,1774942232512,-500.0,0.00014273,2]
[419147983,1774942232522,-500.0,0.00014273,2]
[419147984,1774942232532,-1062.86,0.00014294,2]
[419147986,1774942232543,-166.08637647,0.00014355,2]
[419147987,1774942232552,-318.37836481,0.0001446,2]
[419147988,1774942232562,-395.25,0.00014558,2]
[419147989,1774942232571,-469.30121575,0.00014599,2]
[419147990,1774942232581,-300.0,0.0001463,2]
[419147992,1774942232591,-195.0,0.00014687,2]
[419147994,1774942232600,-300.0,0.00014687,2]
[419147996,1774942232609,-257.05,0.00014783,2]
[419147998,1774942232619,-2500.0,0.000148,2]
[419148000,1774942232629,-19002.6749,0.0001489,2]
[419148001,1774942232638,-1267.7366,0.0001489,2]
[419148003,1774942232648,-4776.66342959,0.00014894,2]
[419148005,1774942232658,-29906.50720721,0.0001494,2]
[419148007,1774942232667,-500.48315369,0.00014973,2]
[419148009,1774942232677,-500.0,0.00014973,2]
[419148011,1774942232687,-629.66942551,0.00014973,2]
[419148013,1774942232696,-500.0,0.00014973,2]
[419148015,1774942232705,-500.65177654,0.00014973,2]
[419148017,1774942232716,-500.0,0.00014973,2]
[419148019,1774942232725,-357.2823536,0.00014973,2]
[419148021,1774942232735,-162.93763666,0.00014973,2]
[419148023,1774942232745,-500.4204841,0.00014973,2]
[419148025,1774942232754,-490.42229162,0.00014973,2]
[419148027,1774942232764,-500.62117525,0.00014973,2]
[419148029,1774942232774,-500.0,0.00014973,2]
[419148031,1774942232784,-500.17694059,0.00014973,2]
[419148033,1774942232793,-485.8394,0.00014981,2]
[419148034,1774942232802,-200.0,0.00014981,2]
[419148035,1774942232812,-503.96151551,0.00014989,2]
[419148036,1774942232821,-1239.68,0.00014989,2]
[419148037,1774942232831,-500.0,0.00014989,2]
[419148038,1774942232840,-215.38422803,0.00014994,2]
[419148039,1774942232850,-300.0,0.00015,2]
[419148040,1774942232861,-4741.0,0.00015,7]
[419148041,1774942232870,-448.07422048,0.00015004,2]
[419148042,1774942232881,-178.72987032,0.00015004,2]
[419148043,1774942232891,-1062.86,0.00015008,2]
[419148044,1774942232900,-462.87,0.00015057,2]
[419148045,1774942232910,-2085.53,0.00015057,2]
[419148046,1774942232919,-3783.43165207,0.00015057,2]
[419148047,1774942232933,-4667.45834793,0.00015057,2]
[419148048,1774942232942,-686.24,0.00015057,2]
[419148049,1774942232952,-500.0,0.00015073,2]
[419148050,1774942232962,-3546.7934949,0.00015074,2]
[419148051,1774942232971,-500.0,0.00015077,2]
[419148052,1774942232981,-505.96140946,0.00015077,2]
[419148053,1774942232991,-265.93591731,0.00015077,2]
[419148054,1774942233000,-500.0,0.00015077,2]
[419148055,1774942233010,-500.18733297,0.00015077,2]
[419148056,1774942233019,-500.0,0.00015077,2]
[419148057,1774942233029,-500.0,0.00015077,2]
[419148058,1774942233039,-500.0,0.00015077,2]
[419148059,1774942233048,-500.0,0.00015077,2]
[419148060,1774942233057,-54534.83271193,0.00015078,2]
[419148061,1774942233069,-749.67029931,0.00015078,2]
[419148062,1774942233142,-500.0,0.00015077,2]
[419148063,1774942233151,-55.38689208,0.00015077,2]
[419148064,1774942233175,-444.61310792,0.00015077,2]
[419148065,1774942233184,-337.38689208,0.00015077,2]
[419148066,1774942233195,-162.61310792,0.00015077,2]
[419148067,1774942233205,-593.73427828,0.00015077,2]
[419148068,1774942233215,-500.0,0.00015077,2]
[419148069,1774942233224,-488.63962584,0.00015078,2]
[419148070,1774942233235,-712.750005,0.00015078,2]
[419148071,1774942240795,-87.96179651,0.00015077,2]
[419148073,1774942240982,-412.03820349,0.00015077,2]
[419148074,1774942240996,-500.0,0.00015077,2]
[419148075,1774942241006,-500.0,0.00015077,2]
[419148076,1774942241016,-500.0,0.00015077,2]
[419148077,1774942241027,-500.0,0.00015077,2]
[419148078,1774942241040,-500.0,0.00015077,2]
[419148079,1774942241053,-500.0,0.00015077,2]
[419148080,1774942241068,-500.0,0.00015077,2]
[419148081,1774942241083,-4128.27742252,0.00015078,2]
[419148082,1774942241094,-5396.1534291,0.00015078,2]
[419148083,1774942241105,-3713.2026585,0.0001509,2]
[419148084,1774942241116,-200.0,0.0001509,2]
[419148085,1774942241126,-200.0,0.0001509,2]
[419148086,1774942241138,-2000.0,0.0001509,2]
[419148087,1774942241150,-200.0,0.0001509,2]
[419148088,1774942241161,-157.0,0.0001509,3]
[419148089,1774942241175,-160.0,0.0001509,3]
[419148090,1774942241187,-319.252,0.00015097,2]
[419148091,1774942241198,-306.660706,0.00015122,2]
[419148092,1774942241209,-306.660706,0.00015122,2]
[419148093,1774942241221,-306.660706,0.00015122,2]
[419148094,1774942241231,-306.660706,0.00015122,2]
[419148095,1774942241241,-226.107571,0.00015122,2]
[419148096,1774942241251,-226.107571,0.00015122,2]
[419148097,1774942241261,-226.107571,0.00015122,2]
[419148098,1774942241275,-226.107571,0.00015122,2]
[419148099,1774942241290,-276.421621,0.00015122,2]
[419148100,1774942241307,-276.421621,0.00015122,2]
[419148101,1774942241320,-276.421621,0.00015122,2]
[419148102,1774942241330,-276.421621,0.00015122,2]
[419148103,1774942241340,-1280.88388878,0.00015141,2]
[419148104,1774942241349,-646.65982734,0.00015141,2]
[419148105,1774942241359,-174.61919141,0.00015141,2]
[419148106,1774942241369,-750.17332084,0.00015141,2]
[419148107,1774942241380,-325.09542854,0.00015141,2]
[419148108,1774942241390,-166.66,0.0001516,2]
[419148109,1774942241400,-150.0,0.000152,2]
[419148111,1774942241411,-200.0,0.00015241,2]
[419148113,1774942241421,-200.0,0.00015241,2]
[419148116,1774942241431,-1239.68,0.00015263,2]
[419148117,1774942241440,-255.0,0.00015383,2]
[419148119,1774942241451,-1680.0,0.00015392,2]
[419148121,1774942241460,-161.0,0.000154,2]
[419148123,1774942241470,-561.0,0.00015413,2]
[419148124,1774942241479,-561.0,0.00015415,2]
[419148125,1774942241488,-561.0,0.0001544,2]
[419148126,1774942241498,-649.0,0.00015451,2]
[419148127,1774942241507,-1269.54503748,0.00015458,2]
[419148129,1774942241520,-669.23421174,0.00015458,2]
[419148131,1774942241534,-3949.22075078,0.00015458,2]
[419148132,1774942241543,-166.66,0.0001546,2]
[419148133,1774942241552,-151.0,0.00015469,2]
[419148134,1774942241562,-151.0,0.00015469,2]
[419148135,1774942241572,-119.67223089,0.00015471,2]
[419148136,1774942241584,-441.32776911,0.00015471,2]
[419148137,1774942241593,-621.45,0.00015471,2]
[419148138,1774942241603,-3128.29,0.00015471,2]
[419148139,1774942241613,-7310.12599835,0.00015471,2]
[419148140,1774942241652,-901.16,0.00015471,2]
[419148141,1774942241663,-1027.37087741,0.00015471,2]
[419148142,1774942241675,-3437.68312424,0.00015471,2]
[419148144,1774942241685,-727.30993018,0.00015471,2]
[419148146,1774942241697,-266.43006982,0.00015471,2]
[419148147,1774942241706,-151.0,0.00015472,2]
[419148148,1774942241716,-160.0,0.00015473,7]
[419148149,1774942241725,-413.102855,0.00015473,7]
[419148150,1774942241734,-666.20571,0.00015473,7]
[419148151,1774942241744,-234.944658,0.00015473,7]
[419148152,1774942241753,-160.0,0.00015473,7]
[419148153,1774942241762,-663.03444217,0.00015473,7]
[419148154,1774942241774,-41.27345283,0.00015473,7]
[419148155,1774942241784,-1248.615791,0.00015473,7]
[419148156,1774942241794,-366.437155,0.00015473,7]
[419148157,1774942241803,-160.0,0.00015501,7]
[419148158,1774942241819,-172.20482,0.00015501,7]
[419148159,1774942241828,-184.409641,0.00015501,7]
[419148160,1774942241838,-3040.47122678,0.00015507,2]
[419148161,1774942241851,-959.52877322,0.00015507,2]
[419148162,1774942241861,-1000.0,0.00015521,2]
[419148163,1774942241871,-632.59131584,0.00015521,2]
[419148164,1774942241883,-367.40868416,0.00015521,2]
[419148165,1774942241893,-160.0,0.00015523,7]
[419148166,1774942241903,-275.245957,0.00015523,7]
[419148167,1774942241912,-390.491915,0.00015523,7]
[419148168,1774942241923,-200.0,0.00015529,2]
[419148169,1774942241932,-1020.32112222,0.00015537,2]
[419148170,1774942241944,-219.35887778,0.00015537,2]
[419148171,1774942241954,-158.93399047,0.00015561,7]
[419148172,1774942241966,-93.41397653,0.00015561,7]
[419148173,1774942241975,-160.0,0.00015561,7]
[419148174,1774942241985,-254.212912,0.00015561,7]
[419148175,1774942241995,-348.425825,0.00015561,7]
[419148176,1774942242004,-368.535916,0.00015561,7]
[419148177,1774942242014,-331.39424204,0.00015562,2]
[419148178,1774942242026,-1268.60575796,0.00015562,2]
[419148179,1774942242037,-891.6,0.00015562,2]
[419148180,1774942242047,-276.421621,0.00015567,2]
[419148181,1774942242057,-276.421621,0.00015567,2]
[419148182,1774942242067,-276.421621,0.00015567,2]
[419148183,1774942242076,-276.421621,0.00015567,2]
[419148184,1774942242085,-339.799629,0.00015571,7]
[419148185,1774942242095,-561.0,0.00015616,2]
[419148186,1774942242104,-160.0,0.0001562,2]
[419148187,1774942242114,-1000.0,0.00015621,2]
[419148188,1774942242124,-561.0,0.0001563,2]
[419148189,1774942242133,-226.107571,0.0001563,2]
[419148190,1774942242143,-226.107571,0.0001563,2]
[419148191,1774942242153,-226.107571,0.0001563,2]
[419148192,1774942242163,-226.107571,0.0001563,2]
[419148193,1774942242173,-158.21,0.00015671,2]
[419148194,1774942242183,-306.660706,0.0001568,2]
[419148195,1774942242192,-306.660706,0.0001568,2]
[419148196,1774942242202,-306.660706,0.0001568,2]
[419148197,1774942242211,-306.660706,0.0001568,2]
[419148198,1774942242221,-561.0,0.00015684,2]
[419148199,1774942242230,-324.48,0.00015684,2]
[419148200,1774942242239,-561.0,0.00015699,2]
[419148201,1774942242248,-2808.0,0.0001572,2]
[419148202,1774942242259,-863.0,0.0001572,2]
[419148203,1774942242268,-1571.0,0.0001572,2]
[419148204,1774942242277,-561.0,0.00015747,2]
[419148209,1774942242851,-163.407609,0.00015753,2]
[419148210,1774942242869,-166.66,0.0001576,2]
[419148211,1774942242879,-1000.0,0.00015781,2]
[419148212,1774942242888,-5000.0,0.00015781,2]
[419148213,1774942242897,-151.0,0.00015789,2]
[419148214,1774942242907,-350.0,0.00015802,2]
[419148215,1774942242916,-1239.68,0.00015811,2]
[419148216,1774942242925,-561.0,0.00015817,2]
[419148217,1774942242934,-151.0,0.0001582,2]
[419148218,1774942242943,-5888.0,0.0001582,2]
[419148219,1774942242952,-151.0,0.00015832,2]
[419148220,1774942242962,-547.13357,0.0001584,2]
[419148221,1774942242971,-547.13358,0.0001584,2]
[419148222,1774942242980,-547.13358,0.0001584,2]
[419148223,1774942242990,-350.0,0.00015861,2]
[419148224,1774942242999,-257.0,0.00015869,2]
[419148225,1774942243009,-500.0,0.00015872,2]
[419148226,1774942243019,-837.124,0.00015879,2]
[419148227,1774942243030,-864.708,0.00015879,2]
[419148228,1774942243040,-1045.0,0.00015879,2]
[419148229,1774942243050,-589.925,0.00015879,2]
[419148230,1774942243060,-3519.0,0.00015879,2]
[419148231,1774942243070,-2469.0,0.00015879,2]
[419148232,1774942243079,-1346.0,0.00015879,2]
[419148233,1774942243090,-5888.0,0.00015881,2]
[419148234,1774942243100,-1051.072,0.00015889,2]
[419148235,1774942243110,-2000.0,0.0001589,2]
[419148236,1774942243120,-250.0,0.0001589,2]
[419148237,1774942243131,-4000.0,0.00015895,2]
[419148238,1774942243141,-350.0,0.00015896,2]
[419148239,1774942243150,-4664.34439798,0.000159,2]
[419148240,1774942243160,-330.74146207,0.000159,7]
[419148241,1774942243170,-257.96499636,0.000159,2]
[419148242,1774942243179,-1886.68312685,0.000159,2]
[419148243,1774942243189,-2025.3260185,0.000159,2]
[419148244,1774942243199,-188.62609632,0.000159,2]
[419148245,1774942243208,-158.22732629,0.000159,2]
[419148246,1774942243217,-351.61618503,0.00015925,2]
[419148247,1774942243226,-11999.21621374,0.00015956,2]
[419148248,1774942243236,-4019.36682065,0.00015956,2]
[419148249,1774942243245,-306.660706,0.00015956,2]
[419148250,1774942243255,-306.660706,0.00015956,2]
[419148251,1774942243264,-306.660706,0.00015956,2]
[419148252,1774942243274,-306.660706,0.00015956,2]
[419148253,1774942243285,-226.107571,0.00015956,2]
[419148254,1774942243295,-226.107571,0.00015956,2]
[419148255,1774942243305,-226.107571,0.00015956,2]
[419148256,1774942243314,-226.107571,0.00015956,2]
[419148257,1774942243323,-276.421621,0.00015956,2]
[419148258,1774942243333,-276.421621,0.00015956,2]
[419148259,1774942243343,-276.421621,0.00015956,2]
[419148260,1774942243361,-276.421621,0.00015956,2]
[419148261,1774942243374,-2000.0,0.00015967,2]
[419148262,1774942243384,-150.0,0.0001597,2]
[419148263,1774942243395,-150.0,0.0001597,2]
[419148264,1774942243406,-222.96972885,0.00015973,2]
[419148266,1774942243416,-150.0,0.0001598,2]
[419148267,1774942243426,-207.99428304,0.0001599,2]
[419148268,1774942243436,-27115.57636998,0.00015997,2]
[419148269,1774942243446,-500.0,0.00015997,2]
[419148270,1774942243456,-500.0,0.00015997,2]
[419148271,1774942243466,-500.0,0.00015997,2]
[419148273,1774942243476,-500.0,0.00015997,2]
[419148274,1774942243486,-500.0,0.00015997,2]
[419148275,1774942243496,-287.75061557,0.00015997,2]
[419148276,1774942243507,-190.73275087,0.00015999,2]
[419148277,1774942243517,-500.0,0.00015999,2]
[419148278,1774942243527,-500.0,0.00015999,2]
[419148279,1774942243539,-500.0,0.00015999,2]
[419148280,1774942243550,-253.02990193,0.00015999,2]
[419148281,1774942243560,-207.39443362,0.00015999,2]
[419148282,1774942243569,-500.0,0.00015999,2]
[419148283,1774942243579,-63841.30806346,0.00016,2]
[419148284,1774942243594,-1002.15656,0.00016,2]
[419148285,1774942243607,-610.45389952,0.00016,2]
[419148286,1774942243649,-2542.91899349,0.00016,2]
[419148287,1774942243662,-1187.75083997,0.00016,2]
[419148288,1774942243676,-12105.72,0.00016,2]
[419148289,1774942243689,-5057.31371581,0.00016,2]
[419148290,1774942243704,-500.0,0.00016,2]
[419148296,1774942243889,-85.55978589,0.00016,2]
[419148297,1774942243957,-4181.99107737,0.00016,2]
[419148298,1774942243976,-13535.92706187,0.00016,2]
[419148299,1774942243992,-6995.06887229,0.00016,2]
[419148300,1774942244008,-831.26802514,0.00016,2]
[419148301,1774942244109,-1985.03709536,0.00016,2]
[419148302,1774942244123,-1911.16944807,0.00016,2]
[419148303,1774942244135,-3640.52001996,0.00016,2]
[419148305,1774942245684,-160.0,0.00015561,7]
[419148306,1774942245695,-162.430877,0.00015561,7]
[419148307,1774942245705,-242.646762,0.00015561,7]
[419148308,1774942245715,-325.293525,0.00015561,7]
[419148309,1774942245725,-164757.5797276,0.00016,2]
[419148310,1774942245905,-4492.75238659,0.00016,2]
[419148311,1774942245918,-255.36250001,0.00016,2]
[419148312,1774942246069,-3263.97470844,0.00016,2]
[419148316,1774942318508,734.7512,0.00014158,120]
[419148339,1774943234135,-250.0,0.00013,2]
[419148340,1774943234158,-648.924385,0.00013561,2]
[419148341,1774943234180,-150.0,0.00013699,2]
[419148342,1774943234206,-150.0,0.00013699,2]
[419148343,1774943234230,-150.0,0.00013699,2]
[419148344,1774943234255,-359.0,0.00013699,2]
[419148345,1774943234279,-1200.0,0.00013699,2]
[419148346,1774943234302,-218.47614131,0.00013699,2]
[419148347,1774943237090,-81.52385869,0.00013699,2]
[419148348,1774943237112,-200.0,0.000137,2]
[419148349,1774943237135,-200.0,0.000137,2]
[419148350,1774943237158,-100.14970283,0.000137,2]
[419148351,1774943248110,-200.56605585,0.000137,2]
[419148354,1774943354095,-150.0,0.00013699,2]
[419148355,1774943354132,-3036.17424132,0.000137,2]
[419148356,1774943354166,-500.0,0.000137,2]
[419148357,1774943354199,-119.22455868,0.000137,2]
[419148365,1774943432425,-30.77544132,0.000137,2]
[419148366,1774943432435,-150.0,0.000137,2]
[419148367,1774943432445,-359.0,0.000137,2]
[419148368,1774943432454,-10465.86359791,0.0001389,2]
[419148369,1774943432466,-360.63590209,0.0001389,2]
[419148370,1774943432475,-150.0,0.00013973,2]
[419148371,1774943432485,-150.0,0.00013973,2]
[419148372,1774943432495,-150.0,0.00013973,2]
[419148373,1774943432504,-1200.0,0.00013981,2]
[419148374,1774943432514,-500.0,0.00013982,2]